bitfinex-derivatives/quotes_BNBF0:USTF0_20250507
["timestamp","ask_amount","ask_price","bid_price","bid_amount"]
[1746624967169,1.01147549,606.08,605.54,0.31797249]
[1746624967570,1.01147549,606.07,605.54,0.31797249]
[1746624968269,1.01147549,606.06,605.54,0.31797249]
[1746624968468,1.01147549,606.05,605.54,0.31797249]
[1746624969074,1.01147549,606.04,605.54,0.31797249]
[1746624969671,1.01147549,606.03,605.54,0.31797249]
[1746624970078,1.01147549,606.02,605.54,0.31797249]
[1746624970573,1.01147549,606.01,605.54,0.31797249]
[1746624970774,1.01147549,606.0,605.54,0.31797249]
[1746624970974,1.01147549,605.99,605.54,0.31797249]
[1746624971475,1.01147549,605.98,605.54,0.31797249]
[1746624971876,1.01147549,605.97,605.54,0.31797249]
[1746624972175,0.32951643,606.95,605.54,0.31797249]
[1746624972472,0.28728516,606.19,605.54,0.31797249]
[1746624972778,0.30342949,606.94,605.54,0.31797249]
[1746624972971,0.30342949,606.18,605.54,0.31797249]
[1746624973176,1.01425195,606.93,605.48,0.666]
[1746624973377,0.30342949,606.92,605.48,0.666]
[1746624973578,0.28718084,606.17,605.48,0.666]
[1746624973875,1.31768144,606.16,605.48,0.666]
[1746624974177,1.31768144,606.15,605.49,0.595]
[1746624974379,1.31768144,606.14,605.49,0.595]
[1746624974672,1.31768144,606.13,605.49,0.595]
[1746624974877,0.30342949,606.12,605.49,0.595]
[1746624975078,1.01425195,606.11,605.49,0.595]
[1746624975379,1.01411221,606.1,605.49,0.595]
[1746624975578,1.3175417,606.1,605.49,0.595]
[1746624975779,1.01411221,606.09,605.49,0.595]
[1746624975981,1.3175417,606.09,605.49,0.595]
[1746624976183,1.01411221,606.08,605.49,0.595]
[1746624976479,0.30346573,606.07,605.49,0.595]
[1746624976678,1.01411221,606.06,605.49,0.595]
[1746624976878,1.01411221,606.05,605.49,0.595]
[1746624977078,1.01411221,606.04,605.49,0.595]
[1746624977279,1.31757794,606.04,605.49,0.595]
[1746624977481,1.01411221,606.03,605.49,0.595]
[1746624977879,1.31759157,606.02,605.49,0.595]
[1746624978080,1.31759157,606.01,605.49,0.595]
[1746624978278,1.31759157,606.0,605.49,0.595]
[1746624978482,0.30347936,606.0,605.49,0.595]
[1746624978678,0.30347936,605.99,605.49,0.595]
[1746624978883,0.30347936,606.07,605.49,0.595]
[1746624980485,1.01456263,606.06,605.49,0.595]
[1746624980783,1.01456263,606.05,605.49,0.595]
[1746624980983,1.01456263,606.04,605.49,0.595]
[1746624981183,1.25105148,606.62,605.49,0.595]
[1746624981382,0.30349234,606.61,605.49,0.595]
[1746624981583,0.28730176,606.08,605.49,0.595]
[1746624981776,0.30349234,606.07,605.49,0.595]
[1746624981978,0.28723417,606.08,605.49,0.595]
[1746624982382,0.30349234,606.07,605.49,0.595]
[1746624984184,0.28723417,606.08,605.49,0.595]
[1746624984583,0.30349002,606.07,605.49,0.595]
[1746624985681,0.28723417,606.08,605.49,0.595]
[1746624985985,0.30346959,606.07,605.49,0.595]
[1746624987786,0.28729227,606.1,605.49,0.595]
[1746624988090,0.30346959,606.09,605.49,0.595]
[1746624990392,0.30346959,606.09,605.5,0.513]
[1746624990694,0.28721876,606.1,605.5,0.513]
[1746624991092,0.30346959,606.09,605.5,0.513]
[1746624994793,0.30346959,606.09,605.51,0.775]
[1746624996493,0.2872899,606.08,605.51,0.775]
[1746624999197,0.30346959,606.09,605.51,0.775]
[1746624999497,0.28729346,606.08,605.51,0.775]
[1746625002204,0.30346959,606.09,605.51,0.775]
[1746625008099,1.25105148,606.69,605.52,0.698]
[1746625008304,0.28725788,606.21,605.52,0.698]
[1746625008504,1.25105148,606.69,605.52,0.698]
[1746625008906,0.28718084,606.25,605.52,0.698]
[1746625009199,1.01296509,606.68,605.52,0.698]
[1746625009904,1.01296509,606.67,605.52,0.698]
[1746625010108,1.30014712,606.67,605.52,0.698]
[1746625010398,0.30346959,606.66,605.52,0.698]
[1746625010604,1.01296509,606.65,605.52,0.698]
[1746625011000,1.01296509,606.64,605.52,0.698]
[1746625011603,1.30015186,606.63,605.52,0.698]
[1746625011804,1.60362145,606.63,605.52,0.698]
[1746625012104,1.31643468,606.62,605.52,0.698]
[1746625012405,0.30346959,606.61,605.52,0.698]
[1746625012604,1.31643468,606.6,605.52,0.698]
[1746625013005,1.31643468,606.59,605.52,0.698]
[1746625013203,0.32971743,606.58,605.52,0.698]
[1746625013505,1.01296509,606.57,605.52,0.698]
[1746625013808,1.31643468,606.56,605.52,0.698]
[1746625014001,1.01249945,606.55,605.52,0.698]
[1746625014201,1.01249945,606.54,605.52,0.698]
[1746625014505,1.01249945,606.53,605.52,0.698]
[1746625014702,1.31593951,606.53,605.52,0.698]
[1746625014907,0.30344006,606.52,605.52,0.698]
[1746625015207,1.31593951,606.52,605.52,0.698]
[1746625015406,0.30344006,606.51,605.52,0.698]
[1746625015602,1.01249945,606.5,605.52,0.698]
[1746625015807,1.01249945,606.49,605.52,0.698]
[1746625016109,0.30344006,606.48,605.52,0.698]
[1746625016308,0.32977723,606.47,605.52,0.698]
[1746625016610,1.31594722,606.46,605.52,0.698]
[1746625016903,1.31594722,606.45,605.52,0.698]
[1746625017210,0.30344777,606.44,605.52,0.698]
[1746625017509,1.01249945,606.43,605.52,0.698]
[1746625017909,0.30344777,606.42,605.52,0.698]
[1746625018111,1.01249945,606.41,605.52,1.379]
[1746625018610,0.30344777,606.4,605.52,1.379]
[1746625018910,1.31594722,606.4,605.52,1.379]
[1746625019111,1.31594722,606.4,605.52,2.027]
[1746625019405,1.31594722,606.39,605.52,2.027]
[1746625020011,1.01249945,606.38,605.52,2.027]
[1746625020206,1.01249945,606.37,605.52,2.027]
[1746625020404,1.60321459,606.37,605.52,2.737]
[1746625020610,0.30344777,606.36,605.52,2.737]
[1746625020810,1.64578428,606.36,605.52,2.737]
[1746625021111,1.31594722,606.35,605.52,2.737]
[1746625021311,0.32984794,606.34,605.52,2.737]
[1746625021512,1.01249945,606.33,605.52,2.737]
[1746625021704,0.30344777,606.32,605.52,2.737]
[1746625021909,0.32986426,606.31,605.52,2.737]
[1746625022105,1.01249945,606.3,605.52,2.737]
[1746625022311,1.31594722,606.3,605.52,2.737]
[1746625022610,1.31594722,606.29,605.52,2.737]
[1746625022813,0.30344777,606.28,605.52,2.737]
[1746625023207,1.01249945,606.27,605.52,2.737]
[1746625023513,0.30344777,606.26,605.52,2.737]
[1746625023815,1.01249945,606.25,605.52,2.737]
[1746625024314,0.30344777,606.24,605.52,2.737]
[1746625024518,1.01249945,606.23,605.52,2.737]
[1746625024714,1.29977749,606.23,605.52,2.737]
[1746625025114,1.01249945,606.22,605.52,2.737]
[1746625025311,1.3159875,606.22,605.52,2.737]
[1746625025511,1.01249945,606.21,605.52,2.737]
[1746625025714,1.01249945,606.2,605.52,2.737]
[1746625025915,1.3159875,606.2,605.52,2.737]
[1746625026118,0.30348805,606.19,605.52,2.737]
[1746625026418,1.3159875,606.19,605.52,2.737]
[1746625026621,1.60327147,606.19,605.52,2.737]
[1746625026818,1.3159875,606.18,605.52,2.737]
[1746625027113,0.30348805,606.17,605.52,2.737]
[1746625027618,1.01249945,606.16,605.52,2.737]
[1746625028118,0.30348805,606.15,605.52,2.737]
[1746625028419,1.01249945,606.14,605.52,2.737]
[1746625028719,1.01249945,606.13,605.52,2.737]
[1746625028915,0.30348805,606.12,605.52,2.737]
[1746625029415,1.29979172,606.11,605.52,2.737]
[1746625029919,0.30348805,606.1,605.52,2.737]
[1746625030414,1.01249945,606.09,605.52,2.737]
[1746625030822,0.30348805,606.08,605.52,2.737]
[1746625031023,1.01249945,606.07,605.52,2.737]
[1746625031422,1.01249945,606.06,605.52,2.039]
[1746625031722,0.3034657,606.05,605.52,2.039]
[1746625032123,1.01249945,606.04,605.52,2.039]
[1746625032424,0.3034657,606.03,605.52,1.329]
[1746625032627,1.01249945,606.02,605.52,1.329]
[1746625032924,1.31596515,606.01,605.52,1.329]
[1746625033122,0.3034657,606.0,605.52,1.329]
[1746625033618,1.01249945,605.99,605.52,1.329]
[1746625034021,1.31596515,605.98,605.52,1.329]
[1746625034421,1.01249945,605.97,605.52,1.329]
[1746625034821,1.01249945,605.96,605.52,1.329]
[1746625035321,1.01249945,605.95,605.52,1.329]
[1746625035623,1.01249945,605.94,605.52,1.329]
[1746625035920,1.01249945,605.93,605.52,1.329]
[1746625036117,1.01249945,605.93,605.52,0.648]
[1746625036525,1.01249945,605.92,605.52,0.648]
[1746625037325,1.01249945,605.91,605.52,0.648]
[1746625037826,1.01249945,605.9,605.52,0.648]
[1746625038227,1.01249945,605.89,605.52,0.648]
[1746625039022,1.01249945,605.88,605.52,0.648]
[1746625040027,1.01249945,605.87,605.52,0.648]
[1746625040627,0.28727923,606.27,605.52,0.648]
[1746625040628,1.01249945,605.86,605.52,0.648]
[1746625040923,1.01249945,605.85,605.52,0.648]
[1746625041427,1.01249945,605.84,605.52,0.648]
[1746625041623,1.01249945,605.83,605.52,0.648]
[1746625042129,1.01249945,605.82,605.52,0.648]
[1746625042629,1.01249945,605.81,605.52,0.648]
[1746625043131,1.01249945,605.8,605.52,0.648]
[1746625043525,1.01249945,605.79,605.52,0.648]
[1746625043826,1.01249945,605.78,605.52,0.648]
[1746625044732,1.01249945,605.77,605.52,0.648]
[1746625045728,1.01249945,605.76,605.52,0.648]
[1746625046135,1.01249945,605.75,605.52,0.648]
[1746625047131,1.01119691,605.74,605.52,0.648]
[1746625047536,1.01119691,605.73,605.52,0.648]
[1746625048136,1.01119691,605.72,605.52,0.648]
[1746625048337,1.01119691,605.72,605.44,0.793]
[1746625048537,1.01119691,605.71,605.44,0.793]
[1746625048836,1.01119691,605.7,605.44,0.793]
[1746625049433,1.01119691,605.69,605.44,0.793]
[1746625049837,1.01119691,605.68,605.44,0.793]
[1746625050137,1.01119691,605.67,605.44,0.793]
[1746625050333,0.32986426,606.31,605.44,0.793]
[1746625050534,0.30335031,606.3,605.44,0.793]
[1746625050933,1.01026748,606.29,605.44,0.793]
[1746625051239,1.01026748,606.28,605.44,0.793]
[1746625051438,1.31361779,606.28,605.44,0.793]
[1746625051639,1.01026748,606.28,605.44,0.793]
[1746625051939,1.01026748,606.27,605.44,0.793]
[1746625052140,1.31362936,606.27,605.45,0.806]
[1746625052442,0.30336188,606.26,605.45,0.806]
[1746625052642,1.01026748,606.25,605.45,0.806]
[1746625052937,0.30336188,606.24,605.45,0.806]
[1746625053142,1.01026748,606.23,605.45,0.806]
[1746625056048,1.01026748,606.22,605.45,0.806]
[1746625056452,1.01026748,606.21,605.45,0.806]
[1746625056855,1.01026748,606.2,605.45,0.806]
[1746625057459,1.01026748,606.19,605.45,0.806]
[1746625057854,1.01026748,606.18,605.45,0.806]
[1746625058351,1.01026748,606.17,605.45,0.806]
[1746625058958,1.01026748,606.16,605.45,0.806]
[1746625059554,1.01026748,606.15,605.45,0.806]
[1746625060354,1.01026748,606.14,605.45,0.806]
[1746625060655,1.01026748,606.13,605.45,0.806]
[1746625061052,1.01026748,606.12,605.45,0.806]
[1746625061459,1.01026748,606.11,605.45,0.806]
[1746625061858,1.01026748,606.1,605.45,0.806]
[1746625062057,1.01026748,606.1,605.46,0.647]
[1746625062753,1.01026748,606.09,605.46,0.647]
[1746625063060,1.01026748,606.08,605.46,0.647]
[1746625063659,1.01026748,606.07,605.46,0.647]
[1746625064058,1.01026748,606.06,605.46,0.647]
[1746625064558,1.01026748,606.05,605.46,0.647]
[1746625065260,1.01026748,606.04,605.46,0.647]
[1746625065655,1.01026748,606.03,605.46,0.647]
[1746625066164,1.01026748,606.03,605.47,0.668]
[1746625066360,1.01026748,606.02,605.47,0.668]
[1746625067061,1.01026748,606.01,605.47,0.668]
[1746625067657,1.01026748,606.0,605.47,0.668]
[1746625068163,1.01026748,605.99,605.47,0.668]
[1746625068864,1.01026748,605.98,605.47,0.668]
[1746625069362,1.01026748,605.97,605.47,0.668]
[1746625069557,1.01026748,605.96,605.47,0.668]
[1746625070158,0.28726974,606.28,605.47,0.668]
[1746625070159,1.01026748,605.95,605.47,0.668]
[1746625070462,0.28726974,606.28,605.47,0.668]
[1746625070463,1.01026748,605.94,605.47,0.668]
[1746625070863,1.01026748,605.93,605.47,0.668]
[1746625071163,1.01026748,605.92,605.47,0.668]
[1746625071959,1.01026748,605.91,605.47,0.668]
[1746625072567,1.01026748,605.9,605.47,0.668]
[1746625072966,1.01026748,605.89,605.47,0.668]
[1746625073362,1.01026748,605.88,605.47,0.668]
[1746625073875,1.01026748,605.87,605.47,0.668]
[1746625074572,1.01026748,605.86,605.47,0.668]
[1746625075269,1.01026748,605.85,605.47,0.668]
[1746625075766,1.01026748,605.84,605.47,0.668]
[1746625076374,1.01026748,605.83,605.47,0.668]
[1746625076676,1.01026748,605.82,605.47,0.668]
[1746625077075,1.01026748,605.81,605.47,0.668]
[1746625077468,1.01026748,605.8,605.47,0.668]
[1746625077975,1.01026748,605.79,605.47,0.668]
[1746625078475,1.01026748,605.78,605.47,0.668]
[1746625078974,1.01026748,605.77,605.47,0.668]
[1746625079470,1.01026748,605.76,605.47,0.668]
[1746625079891,1.01026748,605.75,605.47,0.668]
[1746625080378,1.01026748,605.74,605.47,0.668]
[1746625080580,1.01026748,605.73,605.47,0.668]
[1746625080976,1.01026748,605.72,605.47,0.668]
[1746625081579,1.01026748,605.71,605.47,0.668]
[1746625082078,1.01026748,605.7,605.47,0.668]
[1746625082677,1.01026748,605.69,605.47,0.668]
[1746625083378,1.01026748,605.68,605.47,0.668]
[1746625083777,1.01026748,605.67,605.47,0.668]
[1746625083977,1.01026748,605.66,605.47,0.668]
[1746625084379,1.01026748,605.65,605.47,0.668]
[1746625084875,1.01026748,605.64,605.47,0.668]
[1746625085675,1.01026748,605.63,605.47,0.668]
[1746625086081,1.01026748,605.62,605.47,0.668]
[1746625086579,1.01026748,605.61,605.47,0.668]
[1746625086881,1.01026748,605.6,605.47,0.668]
[1746625087179,1.01026748,605.6,605.46,0.647]
[1746625087373,1.01026748,605.59,605.46,0.647]
[1746625087678,1.01026748,605.58,605.46,0.647]
[1746625087979,1.01026748,605.57,605.46,0.647]
[1746625088379,1.01026748,605.56,605.46,0.647]
[1746625088882,1.01026748,605.55,605.46,0.647]
[1746625089380,1.01026748,605.54,605.46,0.647]
[1746625090080,1.01026748,605.53,605.46,0.647]
[1746625090478,1.01026748,605.52,605.46,0.647]
[1746625091178,1.01026748,605.51,605.46,0.647]
[1746625091379,1.01026748,605.5,605.46,0.647]
[1746625091680,1.01026748,605.49,605.46,0.647]
[1746625091881,1.01026748,605.48,605.46,0.647]
[1746625092179,1.01026748,605.47,605.46,0.647]
[1746625096287,1.01026748,605.47,605.34,0.638]
[1746625096688,1.01026748,605.46,605.34,0.638]
[1746625097189,1.01026748,605.45,605.34,0.638]
[1746625097793,1.01026748,605.44,605.34,0.638]
[1746625098193,0.68368978,606.86,605.34,0.638]
[1746625098388,0.30347033,606.85,605.34,0.638]
[1746625098588,0.28738361,606.14,605.34,0.638]
[1746625098785,0.30347033,606.84,605.34,0.638]
[1746625098986,1.00975663,606.83,605.35,0.63]
[1746625099186,0.32958702,606.82,605.35,0.63]
[1746625099391,1.31322696,606.81,605.35,0.63]
[1746625099590,1.60044454,606.81,605.35,0.63]
[1746625099790,0.32960332,606.79,605.35,0.63]
[1746625099991,1.00975663,606.78,605.35,0.63]
[1746625100191,0.32961961,606.76,605.35,0.63]
[1746625100394,1.00975663,606.75,605.35,0.63]
[1746625100593,0.32963591,606.73,605.35,0.63]
[1746625100894,1.00975663,606.72,605.35,0.63]
[1746625101196,0.32965221,606.7,605.35,0.63]
[1746625101399,1.00975663,606.69,605.35,0.63]
[1746625101692,0.32966851,606.67,605.35,0.63]
[1746625102095,1.00975663,606.66,605.35,0.63]
[1746625102295,0.32968482,606.64,605.35,0.63]
[1746625102490,1.00975663,606.63,605.35,0.63]
[1746625102695,0.32970112,606.61,605.35,0.63]
[1746625103096,0.30347188,606.6,605.35,0.63]
[1746625103297,1.00975663,606.59,605.35,0.63]
[1746625103498,0.63318931,606.58,605.35,0.63]
[1746625103692,0.3297283,606.56,605.35,0.63]
[1746625103895,1.00975663,606.55,605.35,0.63]
[1746625104097,0.32974461,606.53,605.35,0.63]
[1746625104599,1.60048639,606.52,605.35,0.63]
[1746625104793,1.29701451,606.52,605.35,0.63]
[1746625104999,1.31323216,606.51,605.35,0.63]
[1746625105600,0.63323645,606.5,605.35,0.63]
[1746625105800,0.32976636,606.49,605.35,0.63]
[1746625106000,0.30347553,606.48,605.35,0.63]
[1746625106202,1.33953386,606.47,605.35,0.63]
[1746625106496,0.30347553,606.46,605.35,0.63]
[1746625106702,1.33953386,606.47,605.35,0.63]
[1746625106896,1.3132371,606.46,605.35,0.63]
[1746625107202,0.30348047,606.45,605.35,0.63]
[1746625107405,0.63327401,606.44,605.35,0.63]
[1746625107604,1.00975663,606.43,605.35,0.63]
[1746625107902,1.33956105,606.42,605.35,0.63]
[1746625108203,0.32980986,606.41,605.35,0.63]
[1746625108403,1.00975663,606.4,605.36,0.631]
[1746625108602,0.32982074,606.39,605.36,0.631]
[1746625108903,1.00975663,606.38,605.36,0.631]
[1746625109204,1.33958825,606.37,605.36,0.631]
[1746625109504,1.33959369,606.36,605.36,0.631]
[1746625109701,1.6430835,606.36,605.36,0.631]
[1746625109897,0.30348981,606.35,605.36,0.631]
[1746625110202,1.00975663,606.34,605.36,0.631]
[1746625110503,0.30348981,606.33,605.36,0.631]
[1746625110899,1.00975663,606.32,605.36,0.631]
[1746625111099,0.30348981,606.31,605.36,0.631]
[1746625111399,1.00975663,606.3,605.36,0.631]
[1746625111804,0.30348981,606.29,605.36,0.631]
[1746625112200,1.00975663,606.28,605.36,0.631]
[1746625112506,1.00975663,606.27,605.36,0.631]
[1746625112705,1.31324644,606.27,605.36,0.631]
[1746625112909,1.00975663,606.26,605.36,0.631]
[1746625113207,0.30348981,606.25,605.36,0.631]
[1746625113408,1.00975663,606.24,605.36,0.631]
[1746625113808,0.30348981,606.23,605.36,0.631]
[1746625114108,1.00975663,606.22,605.36,0.631]
[1746625114508,1.31324644,606.21,605.36,0.631]
[1746625114804,1.31324644,606.2,605.36,0.631]
[1746625115110,0.30348981,606.19,605.36,0.631]
[1746625115409,1.00975663,606.18,605.36,0.631]
[1746625115803,0.30348981,606.17,605.36,0.631]
[1746625116608,0.28730294,606.16,605.36,0.631]
[1746625116810,1.31324644,606.15,605.36,0.631]
[1746625117210,0.30348981,606.14,605.36,0.631]
[1746625117405,1.31324644,606.14,605.36,0.631]
[1746625118009,0.30348981,606.13,605.36,0.631]
[1746625118207,1.00975663,606.12,605.36,0.631]
[1746625118409,1.00975663,606.12,605.37,0.839]
[1746625118713,0.30348981,606.13,605.37,0.839]
[1746625118714,1.31324644,606.11,605.37,0.839]
[1746625119006,0.30348981,606.1,605.37,0.839]
[1746625119207,1.00975663,606.09,605.37,0.839]
[1746625119413,1.00975663,606.09,605.38,0.844]
[1746625119816,1.31324644,606.08,605.38,0.844]
[1746625120312,1.31324644,606.07,605.38,0.844]
[1746625120513,0.30348981,606.06,605.38,0.844]
[1746625120713,1.00975663,606.05,605.38,0.844]
[1746625120914,1.00975663,606.04,605.38,0.844]
[1746625121214,1.00975663,606.03,605.38,0.844]
[1746625121411,1.31324644,606.03,605.38,0.844]
[1746625121607,1.00975663,606.02,605.38,0.844]
[1746625121811,1.31324644,606.02,605.38,0.844]
[1746625122314,1.00975663,606.01,605.38,0.844]
[1746625122809,1.00975663,606.0,605.38,0.844]
[1746625123010,1.31321477,606.0,605.38,0.844]
[1746625123215,1.31321477,605.99,605.38,0.844]
[1746625123416,1.00975663,605.99,605.38,0.844]
[1746625123615,1.00975663,605.98,605.38,0.844]
[1746625123815,1.00975663,605.98,605.39,0.788]
[1746625124115,1.00975663,605.97,605.39,0.788]
[1746625124310,1.00975663,605.96,605.39,0.788]
[1746625125115,1.00975663,605.95,605.39,0.788]
[1746625125817,1.00975663,605.94,605.39,0.788]
[1746625126417,1.00975663,605.93,605.39,0.788]
[1746625126812,1.00975663,605.92,605.39,0.788]
[1746625127313,1.00975663,605.91,605.39,0.788]
[1746625128017,1.00975663,605.9,605.39,0.788]
[1746625128318,1.00975663,605.89,605.39,0.788]
[1746625128615,1.00975663,605.88,605.39,0.788]
[1746625128818,1.00975663,605.87,605.39,0.788]
[1746625129222,1.00975663,605.86,605.39,0.788]
[1746625129718,1.00975663,605.85,605.39,0.788]
[1746625130021,1.00975663,605.84,605.39,0.788]
[1746625130418,1.00975663,605.83,605.39,0.788]
[1746625131121,1.00975663,605.82,605.39,0.788]
[1746625132134,1.00975663,605.81,605.39,0.788]
[1746625132923,1.00975663,605.8,605.39,0.788]
[1746625133325,1.00975663,605.79,605.39,0.788]
[1746625133827,1.01216137,605.78,605.39,0.788]
[1746625134229,1.01216137,605.77,605.39,0.788]
[1746625134728,1.01216137,605.76,605.39,0.788]
[1746625135023,1.01216137,605.75,605.39,0.788]
[1746625135823,1.01216137,605.74,605.39,0.788]
[1746625136427,1.01216137,605.73,605.39,0.788]
[1746625136930,1.01216137,605.72,605.39,0.788]
[1746625137134,1.01216137,605.71,605.39,0.788]
[1746625138032,1.01216137,605.7,605.39,0.788]
[1746625138228,1.01216137,605.69,605.39,0.788]
[1746625138530,1.01216137,605.68,605.39,0.788]
[1746625138825,1.01216137,605.67,605.39,0.788]
[1746625139231,0.28731125,606.28,605.39,0.788]
[1746625139526,0.30339774,606.27,605.39,0.788]
[1746625140332,1.01170164,606.26,605.39,0.788]
[1746625140524,0.30339774,606.25,605.39,0.788]
[1746625140930,1.01170164,606.24,605.39,0.788]
[1746625141331,1.01170164,606.23,605.39,0.788]
[1746625141832,1.01170164,606.23,605.38,0.844]
[1746625142029,1.01170164,606.22,605.38,0.844]
[1746625142730,1.01170164,606.21,605.38,0.844]
[1746625142931,1.01170164,606.2,605.38,0.844]
[1746625143232,1.01170164,606.19,605.38,0.844]
[1746625143824,1.01170164,606.18,605.38,0.844]
[1746625144533,1.01170164,606.18,605.39,0.825]
[1746625144731,1.01170164,606.17,605.39,0.825]
[1746625145228,1.01170164,606.16,605.39,0.825]
[1746625145425,1.01170164,606.15,605.39,0.825]
[1746625146027,1.01170164,606.14,605.39,0.825]
[1746625146632,1.01170164,606.13,605.39,0.825]
[1746625147332,1.01170164,606.12,605.39,0.825]
[1746625147633,1.01170164,606.11,605.39,0.825]
[1746625148231,1.01170164,606.1,605.4,0.33036009]
[1746625148631,1.01170164,606.09,605.4,0.33036009]
[1746625149325,1.01170164,606.08,605.4,0.33036009]
[1746625149831,1.01170164,606.07,605.4,0.33036009]
[1746625150333,1.01170164,606.06,605.4,0.33036009]
[1746625150633,0.28723536,606.43,605.4,0.33036009]
[1746625150634,1.01170164,606.05,605.4,0.33036009]
[1746625151434,1.01170164,606.04,605.4,0.33036009]
[1746625151734,1.01170164,606.03,605.4,0.33036009]
[1746625151934,1.01170164,606.02,605.4,0.33036009]
[1746625152132,0.28723536,606.43,605.4,0.33036009]
[1746625152133,1.01170164,606.01,605.4,0.33036009]
[1746625152330,1.01170164,606.0,605.4,0.33036009]
[1746625152637,1.01170164,605.99,605.4,0.33036009]
[1746625152837,1.01170164,605.98,605.4,0.33036009]
[1746625153030,1.01170164,605.97,605.4,0.33036009]
[1746625153233,1.01170164,605.96,605.4,0.33036009]
[1746625153532,1.01170164,605.95,605.4,0.33036009]
[1746625153935,1.01170164,605.94,605.4,0.33036009]
[1746625154231,1.01170164,605.93,605.4,0.33036009]
[1746625154935,1.01170164,605.92,605.4,0.33036009]
[1746625155638,1.01170164,605.91,605.4,0.33036009]
[1746625156137,1.01170164,605.9,605.4,0.33036009]
[1746625156733,1.01170164,605.89,605.4,0.33036009]
[1746625157135,1.01170164,605.88,605.4,0.33036009]
[1746625157935,1.01170164,605.87,605.4,0.33036009]
[1746625158540,1.01170164,605.86,605.4,0.33036009]
[1746625159040,1.01170164,605.85,605.4,0.33036009]
[1746625159239,1.01170164,605.84,605.4,0.33036009]
[1746625159641,1.01170164,605.83,605.4,0.33036009]
[1746625160041,1.01170164,605.82,605.4,0.33036009]
[1746625160441,1.01170164,605.81,605.4,0.33036009]
[1746625160841,1.01170164,605.8,605.4,0.33036009]
[1746625161439,1.01170164,605.79,605.4,0.33036009]
[1746625162240,1.01170164,605.78,605.4,0.33036009]
[1746625162540,1.01170164,605.77,605.4,0.33036009]
[1746625163340,1.01170164,605.76,605.4,0.33036009]
[1746625163836,0.28726618,606.43,605.4,0.33036009]
[1746625164146,0.30332698,606.42,605.4,0.33036009]
[1746625164540,1.00860926,606.41,605.4,0.33036009]
[1746625164841,0.30332698,606.4,605.4,0.33036009]
[1746625165136,1.00860926,606.39,605.4,0.33036009]
[1746625165743,0.30332698,606.38,605.4,0.33036009]
[1746625165935,1.31193624,606.38,605.4,0.33036009]
[1746625166341,1.00860926,606.37,605.4,0.33036009]
[1746625166534,1.31193624,606.37,605.4,0.33036009]
[1746625167141,1.31193624,606.36,605.4,0.33036009]
[1746625167342,0.30332698,606.35,605.4,0.33036009]
[1746625167647,1.00860926,606.34,605.4,0.33036009]
[1746625167940,1.00860926,606.33,605.4,0.33036009]
[1746625168140,1.31193624,606.33,605.4,0.33036009]
[1746625168342,0.30332698,606.32,605.4,0.33036009]
[1746625168537,1.31193624,606.32,605.4,0.33036009]
[1746625168837,1.00860926,606.31,605.4,0.33036009]
[1746625169042,1.00860926,606.31,605.4,0.89436009]
[1746625169241,1.31193624,606.31,605.4,0.89436009]
[1746625169543,1.00860926,606.3,605.4,0.89436009]
[1746625170041,1.00860926,606.29,605.4,0.89436009]
[1746625170742,1.00860926,606.28,605.4,1.45936009]
[1746625171042,1.00860926,606.27,605.4,1.45936009]
[1746625171340,1.00860926,606.26,605.4,1.45936009]
[1746625171842,1.00860926,606.25,605.4,1.45936009]
[1746625172542,1.00860926,606.24,605.4,1.45936009]
[1746625172743,1.00860926,606.24,605.4,2.13136009]
[1746625172943,1.00860926,606.23,605.4,2.13136009]
[1746625173238,1.00860926,606.22,605.4,2.13136009]
[1746625173846,1.00860926,606.21,605.4,2.85536009]
[1746625174343,1.00860926,606.2,605.4,2.85536009]